[Event "Leca Open 2022"]
[Site "Leca da Palmeira"]
[Date "2022.07.31"]
[Round "1.1"]
[White "Goncalves, Lucas Jordao"]
[Black "Motylev, Alexander"]
[Result "0-1"]
[ECO "B90"]
[WhiteElo "1813"]
[BlackElo "2632"]
[Annotator "TA"]
[PlyCount "52"]
[EventDate "2022.08.02"]
[EventType "swiss"]
[EventCountry "POR"]
[SourceTitle "playchess.com"]
[Source "ChessBase"]
[SourceQuality "1"]
[TimeControl "5400+30"]

{[%evp 18,52,20,5,28,9,0,2,13,22,15,-10,-32,-165,-165,-153,-158,-165,-156,-162,-164,-164,-167,-177,-173,-246,-246,-328,-325,-321,-315,-322,-316,-412,-386,-409,-394]} 1. e4 {[%emt 0:00:03]} c5 {[%emt 0:00:05]} 2. Nf3 {[%emt 0:00:05]} d6 {[%emt 0:00:05]} 3. d4 {[%emt 0:00:12]} cxd4 {[%emt 0:00:05]} 4. Nxd4 {[%emt 0:00:15]} Nf6 {[%emt 0:00:05]} 5. Nc3 {[%emt 0:00:10]} a6 {[%emt 0:00:10]} 6. Be3 {[%emt 0:02:19]} e5 {[%emt 0:00:09]} 7. Nb3 {[%emt 0:00:10]} Be6 {[%emt 0:00:05]} 8. f3 {[%emt 0:00:18]} Nbd7 {[%emt 0:00:06]} 9. Qd2 {[%emt 0:00:48]} h5 {[%emt 0:01:30]} 10. O-O-O {[%emt 0:04:39]} Qc7 {[%emt 0:00:28] B90: Sicilian Najdorf: Unusual White 6th moves, 6 Be3 Ng4 and 6 Be3 e5.} 11. Be2 {[%emt 0:05:21]} Rc8 {[%emt 0:01:38]} 12. Kb1 {[%emt 0:01:50]} Be7 {[%emt 0:01:38] The position is equal.} 13. h4 {[%emt 0:06:50]} b5 {[%emt 0:00:53]} 14. a3 {[%emt 0:11:09]} Nb6 {[%emt 0:03:10]} 15. g3 {[%emt 0:07:12] [#]} ({Better is} 15. Bxb6 $15 Qxb6 16. Rhg1) 15... Nc4 $1 $19 {[%emt 0:01:49] [#]} 16. Qd3 $146 {[%emt 0:02:34] [#]} ({Predecessor:} 16. Bxc4 bxc4 17. Nc1 Rb8 18. N3e2 d5 19. exd5 Nxd5 20. Ka1 Qb7 21. b3 Bxa3 22. Bf2 O-O 23. Be1 Rfc8 24. Ka2 cxb3+ 25. cxb3 Bxc1 26. Nxc1 Rxc1 {0-1 (26) Cacas,A (1743)-Oezalp,A ICCF email 2017}) 16... Nxa3+ $1 {[%emt 0:03:03][%mdl 512]} 17. bxa3 {[%emt 0:00:25]} Qxc3 {[%emt 0:00:07]} 18. Qxc3 {[%emt 0:00:09]} Rxc3 {[%emt 0:00:05]} 19. Bd2 {[%emt 0:00:06]} Rc8 {[%emt 0:00:36]} 20. Bb4 {[%emt 0:00:33]} d5 {[%emt 0:00:24]} 21. Bd3 {[%emt 0:01:31]} (21. Nd2 {might work better.}) 21... dxe4 {[%emt 0:00:57]} 22. Bxe4 {[%emt 0:02:08]} Nxe4 {[%emt 0:02:13]} 23. fxe4 {[%emt 0:00:05]} Bxb4 {[%emt 0:01:13]} 24. axb4 {[%emt 0:00:01]} Rc4 {[%emt 0:00:31][%csl LRb4,LRe4]} 25. Nc5 {[%emt 0:01:33]} Rxb4+ {[%emt 0:00:59]} 26. Kc1 {[%emt 0:00:04]} Ke7 {[%emt 0:00:34] White got outplayed after the opening.  Weighted Error Value: White=0.39/Black=0.02 (flawless)} 0-1

[Event "Leca Open 2022"]
[Site "Leca da Palmeira"]
[Date "2022.07.31"]
[Round "1.2"]
[White "Perez Candelario, Manuel"]
[Black "Da Silva, Reinaldo S.B."]
[Result "1-0"]
[ECO "A05"]
[WhiteElo "2578"]
[BlackElo "2340"]
[Annotator "TA"]
[PlyCount "75"]
[EventDate "2022.08.02"]
[EventType "swiss"]
[EventCountry "POR"]
[SourceTitle "playchess.com"]
[Source "ChessBase"]
[SourceQuality "1"]
[TimeControl "5400+30"]

{[%evp 9,75,10,10,6,36,18,41,11,58,11,71,59,65,55,90,89,87,73,75,60,75,81,79,58,79,85,77,91,92,68,125,123,122,126,134,131,136,125,207,214,205,221,294,264,397,402,484,262,254,204,212,204,331,323,480,326,304,302,745,735,29989,29990,29991,29992,29992,29993,29993,29990]} 1. Nf3 {[%emt 0:00:03]} Nf6 {[%emt 0:00:19]} 2. g3 {[%emt 0:00:03]} g6 {[%emt 0:00:31]} 3. b3 {[%emt 0:01:19]} Bg7 {[%emt 0:00:43]} 4. Bb2 {[%emt 0:00:02]} c5 {[%emt 0:00:37]} 5. c4 {[%emt 0:00:31]} d6 {[%emt 0:03:32]} 6. Bg2 {[%emt 0:00:42] A30: Symmetrical English: Double Fianchetto and Hedgehog.} Na6 {[%emt 0:03:03]} 7. O-O {[%emt 0:01:17]} O-O {[%emt 0:01:06]} 8. Nc3 {[%emt 0:01:05] White is slightly better.} Nc7 {[%emt 0:02:01]} (8... e5 $11) 9. Rc1 {[%emt 0:01:44]} (9. d4 $14 {was preferrable.}) 9... Rb8 {[%emt 0:03:42]} (9... e5 $11) 10. d4 $16 {[%emt 0:01:33]} cxd4 {[%emt 0:05:59]} 11. Nxd4 {[%emt 0:00:41] [#]} Nd7 $146 {[%emt 0:11:37]} ({Predecessor:} 11... a6 12. Qd2 Ne6 13. Nxe6 {½-½ (13) Konik,M (1997)-Urytskyy,A (2103) Bayern 2011}) 12. Qd2 {[%emt 0:00:52] 0x0.0013ba699740dp-1022s more active pieces. The black rooks are badly placed.} Nc5 {[%emt 0:04:00]} 13. Rfd1 {[%emt 0:00:54]} Bd7 {[%emt 0:04:52]} 14. h3 {[%emt 0:08:11]} N5e6 {[%emt 0:06:01]} 15. Nxe6 {[%emt 0:07:39]} Nxe6 {[%emt 0:05:46]} 16. h4 {[%emt 0:02:37]} Bc6 {[%emt 0:02:55]} 17. Nd5 {[%emt 0:02:19]} Bxb2 {[%emt 0:02:37]} 18. Qxb2 {[%emt 0:00:23]} Bxd5 {[%emt 0:00:44]} 19. Bxd5 {[%emt 0:01:04][%cal Oh4h5]} Qb6 {[%emt 0:02:35] [#]} (19... b6 $14) 20. h5 $1 {[%emt 0:02:26]} Ng7 {[%emt 0:02:42]} 21. hxg6 {[%emt 0:00:55]} ({Don't take} 21. c5 $6 dxc5 22. hxg6 (22. h6 Nf5 $11) 22... hxg6 $14) 21... hxg6 {[%emt 0:00:07]} 22. Kg2 {[%emt 0:00:28] Hoping for Rh1.} e6 {[%emt 0:00:56]} 23. Bf3 {[%emt 0:00:43]} f6 {[%emt 0:03:48]} (23... Qc5 $16 {is a better defense.} 24. e3 Ne8) 24. Rd3 {[%emt 0:01:48]} Rf7 {[%emt 0:09:02]} 25. Rh1 {[%emt 0:04:23] And now Rh6 would win.} Ne8 {[%emt 0:06:04]} 26. Re3 {[%emt 0:00:56]} Nc7 {[%emt 0:02:06]} (26... Ng7 {was worth a try.} 27. Qb1 (27. Rh6 Nf5 $16) 27... f5) 27. Re4 $18 {[%emt 0:01:22]} Kg7 {[%emt 0:03:17]} 28. Reh4 {[%emt 0:00:50]} (28. Rg4 $142 Rg8 29. Be4) 28... Rg8 {[%emt 0:00:51]} 29. Qd2 {[%emt 0:04:51][%csl Gh1,Gh4][%cal Rd2h6] [#]} Kf8 {[%emt 0:03:46]} 30. Rh8 {[%emt 0:01:00]} Rfg7 {[%emt 0:01:58]} (30... Ne8 $142 31. Qf4 (31. Qh6+ Rfg7 $16) 31... Rfg7) 31. R1h7 {[%emt 0:01:43]} g5 {[%emt 0:06:42]} (31... Ne8 $142 32. Qh6 Qd8 33. Bxb7 Qc7) 32. Qd3 {[%emt 0:05:36]} f5 {[%emt 0:00:54]} 33. g4 {[%emt 0:02:50]} f4 {[%emt 0:01:27]} (33... fxg4 34. Qc3 Ne8 35. Bxg4 Qc6+ 36. f3 Qd7) 34. Qc3 {Intending Qxg7+ and mate.} e5 {[%emt 0:00:29]} 35. Qd3 {[%emt 0:02:01] White mates.} Rxh7 {[%emt 0:00:37]} 36. Rxh7 {[%emt 0:00:06]} Rg7 {[%emt 0:00:21]} 37. Qf5+ {[%emt 0:02:02]} Kg8 {[%emt 0:00:24]} 38. Rh6 {[%emt 0:01:09] Black got outplayed after the opening.  Weighted Error Value: White=0.17 (very precise) /Black=0.53} 1-0

[Event "Leca Open 2022"]
[Site "Leca da Palmeira"]
[Date "2022.07.31"]
[Round "1.3"]
[White "San Vicente Cosculluela, Jose Lu"]
[Black "Martinez Duany, Lelys Stanley"]
[Result "0-1"]
[ECO "B40"]
[WhiteElo "1795"]
[BlackElo "2497"]
[Annotator "RC"]
[PlyCount "76"]
[EventDate "2022.08.02"]
[EventType "swiss"]
[EventCountry "POR"]
[SourceTitle "playchess.com"]
[Source "ChessBase"]
[SourceQuality "1"]
[TimeControl "5400+30"]

1. e4 {[%emt 0:00:08]} c5 {[%emt 0:00:09]} 2. Nf3 {[%emt 0:00:18]} e6 {[%emt 0:00:24]} 3. d3 {[%emt 0:00:45]} d5 {[%emt 0:00:18]} 4. Nbd2 {[%emt 0:00:11]} Nc6 {[%emt 0:00:20]} 5. g3 {[%emt 0:00:31]} Bd6 {[%emt 0:01:28]} 6. Bg2 {[%emt 0:02:17]} Nge7 {[%emt 0:00:08]} 7. c3 {[%emt 0:07:05]} b6 {[%emt 0:00:42]} 8. Qe2 {[%emt 0:01:58]} O-O {[%emt 0:00:39]} 9. O-O {[%emt 0:07:10]} Ba6 {[%emt 0:00:11]} 10. Re1 {[%emt 0:01:06]} Bc7 {[%emt 0:00:29]} 11. Bf1 {[%emt 0:06:52]} Ng6 {[%emt 0:00:29]} 12. h4 {[%emt 0:05:03]} Nge5 {[%emt 0:06:54]} 13. Nxe5 {[%emt 0:02:21]} Nxe5 {[%emt 0:00:12]} 14. c4 {[%emt 0:02:26]} dxc4 {[%emt 0:11:06]} 15. dxc4 {[%emt 0:03:43]} Qd4 {[%emt 0:02:52]} 16. Nf3 {[%emt 0:11:58]} Qxc4 {[%emt 0:01:55]} 17. Nxe5 {[%emt 0:03:04]} Qxe2 {[%emt 0:00:10]} 18. Bxe2 {[%emt 0:00:13]} Bxe2 {[%emt 0:00:06]} 19. Rxe2 {[%emt 0:04:38]} Bxe5 {[%emt 0:00:15]} 20. a4 {[%emt 0:00:32]} Rad8 {[%emt 0:00:48]} 21. Be3 {[%emt 0:01:35]} Rd3 {[%emt 0:00:06]} 22. Kg2 {[%emt 0:06:05]} Rb3 {[%emt 0:01:05]} 23. a5 {[%emt 0:02:37]} h5 {[%emt 0:01:23]} 24. Rd2 {[%emt 0:03:11]} Rb4 {[%emt 0:01:40]} 25. Rd7 {[%emt 0:02:38]} Bxb2 {[%emt 0:03:09]} 26. Rad1 {[%emt 0:00:41]} Ra8 {[%emt 0:02:21]} 27. Kf3 {[%emt 0:09:00]} Bf6 {[%emt 0:02:24]} 28. Bg5 {[%emt 0:03:13]} Bd4 {[%emt 0:00:29]} 29. Be3 {[%emt 0:00:43]} Rb3 {[%emt 0:01:00]} 30. Rb7 {[%emt 0:00:31]} e5 {[%emt 0:00:42]} 31. g4 {[%emt 0:01:32]} hxg4+ {[%emt 0:00:29]} 32. Kxg4 {[%emt 0:00:07]} Rb5 {[%emt 0:06:05]} 33. Bd2 {[%emt 0:03:07]} c4 {[%emt 0:00:25]} 34. f4 {[%emt 0:00:25]} c3 {[%emt 0:00:13]} 35. Bc1 {[%emt 0:00:28]} Rxa5 {[%emt 0:01:20]} 36. fxe5 {[%emt 0:01:03]} Bxe5 {[%emt 0:00:13]} 37. Rdd7 {[%emt 0:00:36]} Ra1 {[%emt 0:00:18]} 38. Be3 {[%emt 0:00:32]} Re1 {[%emt 0:00:33]} 0-1

[Event "Leca Open 2022"]
[Site "Leca da Palmeira"]
[Date "2022.07.31"]
[Round "1.4"]
[White "Spraggett, Kevin"]
[Black "Fernandes, Francisco Justo Sant"]
[Result "1-0"]
[ECO "A36"]
[WhiteElo "2487"]
[BlackElo "1788"]
[Annotator "RC"]
[PlyCount "99"]
[EventDate "2022.08.02"]
[EventType "swiss"]
[EventCountry "POR"]
[SourceTitle "playchess.com"]
[Source "ChessBase"]
[SourceQuality "1"]
[TimeControl "5400+30"]

1. c4 c5 2. g3 Nc6 3. Bg2 g6 4. Nc3 Bg7 5. e3 e6 6. Nge2 Nge7 7. Nf4 a6 8. d3 Rb8 9. h4 b5 10. Qd2 bxc4 11. dxc4 Ne5 12. Qe2 Rb4 13. Nd3 Nxd3+ 14. Qxd3 Nc6 15. f4 Bb7 16. O-O O-O 17. Rb1 Na5 18. Bxb7 Rxb7 19. b3 Nc6 20. Na4 Qc7 21. Ba3 Nb4 22. Qd2 Rd8 23. Rbc1 d5 24. Rfd1 d4 25. Bxb4 Rxb4 26. exd4 Rxd4 27. Qe1 Rb8 28. Rxd4 Bxd4+ 29. Kh2 e5 30. Qe4 exf4 31. Qxf4 Be5 32. Qe3 Bd4 33. Qe4 Rd8 34. Rd1 Kg7 35. Kg2 Rd7 36. Re1 Bf6 37. Qf3 Qd6 38. Re2 Bd4 39. h5 f5 40. Re8 Kf7 41. Re2 Kf6 42. hxg6 hxg6 43. Qa8 f4 44. Qf3 g5 45. Nc3 Bxc3 46. Qxc3+ Qd4 47. Qf3 Kg7 48. Qg4 Kf6 49. gxf4 Re7 50. Qxg5+ 1-0

[Event "Leca Open 2022"]
[Site "Leca da Palmeira"]
[Date "2022.07.31"]
[Round "1.5"]
[White "Mateus, Andre"]
[Black "Das, Sayantan"]
[Result "0-1"]
[ECO "C00"]
[WhiteElo "1781"]
[BlackElo "2449"]
[Annotator "RC"]
[PlyCount "64"]
[EventDate "2022.08.02"]
[EventType "swiss"]
[EventCountry "POR"]
[SourceTitle "playchess.com"]
[Source "ChessBase"]
[SourceQuality "1"]
[TimeControl "5400+30"]

1. e4 {[%emt 0:00:02]} e6 {[%emt 0:00:36]} 2. c4 {[%emt 0:00:06]} c5 {[%emt 0:01:12]} 3. Nc3 {[%emt 0:00:26]} Nc6 {[%emt 0:00:31]} 4. Nf3 {[%emt 0:01:22]} Nf6 {[%emt 0:02:26]} 5. d4 {[%emt 0:00:25]} cxd4 {[%emt 0:00:46]} 6. Nxd4 {[%emt 0:00:03]} Bb4 {[%emt 0:02:16]} 7. Nxc6 {[%emt 0:01:16]} bxc6 {[%emt 0:01:07]} 8. Bd3 {[%emt 0:00:29]} e5 {[%emt 0:00:51]} 9. O-O {[%emt 0:06:50]} O-O {[%emt 0:01:47]} 10. Bg5 {[%emt 0:04:25]} h6 {[%emt 0:01:25]} 11. Bh4 {[%emt 0:00:23]} d6 {[%emt 0:02:30]} 12. Rc1 {[%emt 0:06:35]} Rb8 {[%emt 0:02:31]} 13. b3 {[%emt 0:08:17]} Be6 {[%emt 0:04:25]} 14. Bb1 {[%emt 0:03:21]} Re8 {[%emt 0:02:36]} 15. Qd3 {[%emt 0:06:16]} g5 {[%emt 0:06:59]} 16. Bg3 {[%emt 0:00:20]} Nh5 {[%emt 0:00:12]} 17. Rfd1 {[%emt 0:06:34]} Nf4 {[%emt 0:02:40]} 18. Bxf4 {[%emt 0:00:55]} gxf4 {[%emt 0:00:08]} 19. Na4 {[%emt 0:01:26]} Qg5 {[%emt 0:05:06]} 20. Kh1 {[%emt 0:12:05]} Rbd8 {[%emt 0:01:23]} 21. Qc2 {[%emt 0:08:17]} Ba3 {[%emt 0:01:41]} 22. c5 {[%emt 0:00:59]} Bxc1 {[%emt 0:01:37]} 23. Rxc1 {[%emt 0:00:02]} Kh8 {[%emt 0:06:38]} 24. f3 {[%emt 0:05:01]} Rg8 {[%emt 0:01:54]} 25. b4 {[%emt 0:04:42]} Qh4 {[%emt 0:01:32]} 26. cxd6 {[%emt 0:00:34]} Rg5 {[%emt 0:01:25]} 27. Qd1 {[%emt 0:01:24]} Rh5 {[%emt 0:01:55]} 28. Qg1 {[%emt 0:00:18]} Rxd6 {[%emt 0:00:12]} 29. Nc5 {[%emt 0:00:13]} Rd2 {[%emt 0:01:06]} 30. Nxe6 {[%emt 0:00:39]} fxe6 {[%emt 0:00:47]} 31. b5 {[%emt 0:03:28]} cxb5 {[%emt 0:01:57]} 32. h3 {[%emt 0:02:13]} Qxh3+ {[%emt 0:00:27]} 0-1

[Event "Leca Open 2022"]
[Site "Leca da Palmeira"]
[Date "2022.07.31"]
[Round "1.6"]
[White "Stella, Andrea"]
[Black "Santos, Roberio"]
[Result "1-0"]
[ECO "D96"]
[WhiteElo "2443"]
[BlackElo "1781"]
[Annotator "RC"]
[PlyCount "83"]
[EventDate "2022.08.02"]
[EventType "swiss"]
[EventCountry "POR"]
[SourceTitle "playchess.com"]
[Source "ChessBase"]
[SourceQuality "1"]
[TimeControl "5400+30"]

1. d4 d5 2. c4 c6 3. Nf3 Nf6 4. Nc3 g6 5. cxd5 Nxd5 6. e4 Nxc3 7. bxc3 Bg7 8. Be2 Qa5 9. Bd2 Bg4 10. Qb3 b5 11. Ng5 Be6 12. Nxe6 fxe6 13. Qxe6 Qc7 14. e5 Qd7 15. Qb3 a5 16. a4 b4 17. O-O Bxe5 18. Rad1 Bd6 19. cxb4 Qc7 20. d5 axb4 21. dxc6 Na6 22. Bh6 Nc5 23. Qh3 Ne4 24. Bc4 Ra5 25. Bg7 Rh5 26. Qd7+ Qxd7 27. cxd7+ Kd8 28. g4 Rh4 29. f3 Ng5 30. Rxd6 Nxf3+ 31. Rxf3 Rxg4+ 32. Rg3 Rxc4 33. Rb6 Kc7 34. Bxh8 Kxd7 35. Rb3 Rc2 36. R6xb4 h5 37. h4 Ra2 38. Bb2 e5 39. Ra3 Rxa3 40. Bxa3 Kc6 41. Kf2 e4 42. Rb5 1-0

[Event "Leca Open 2022"]
[Site "Leca da Palmeira"]
[Date "2022.07.31"]
[Round "1.7"]
[White "Wang, Minqing"]
[Black "Abdisalimov, Abdimalik"]
[Result "0-1"]
[ECO "E10"]
[WhiteElo "1778"]
[BlackElo "2437"]
[Annotator "RC"]
[PlyCount "74"]
[EventDate "2022.08.02"]
[EventType "swiss"]
[EventCountry "POR"]
[SourceTitle "playchess.com"]
[Source "ChessBase"]
[SourceQuality "1"]
[TimeControl "5400+30"]

1. d4 {[%emt 0:00:03]} Nf6 {[%emt 0:00:18]} 2. c4 {[%emt 0:00:30]} e6 {[%emt 0:00:30]} 3. Nf3 {[%emt 0:00:30]} c5 {[%emt 0:00:30]} 4. e3 {[%emt 0:00:30]} b6 {[%emt 0:00:30]} 5. Nc3 {[%emt 0:00:30]} Bb7 {[%emt 0:00:30]} 6. d5 {[%emt 0:00:30]} exd5 {[%emt 0:00:30]} 7. cxd5 {[%emt 0:00:30]} d6 {[%emt 0:00:30]} 8. e4 {[%emt 0:00:30]} a6 {[%emt 0:00:30]} 9. a4 {[%emt 0:00:30]} g6 {[%emt 0:00:30]} 10. Bc4 {[%emt 0:00:30]} Bg7 {[%emt 0:00:30]} 11. O-O {[%emt 0:00:30]} O-O {[%emt 0:00:30]} 12. Re1 {[%emt 0:00:30]} Re8 {[%emt 0:00:30]} 13. Bg5 {[%emt 0:00:30]} h6 {[%emt 0:00:30]} 14. Bh4 {[%emt 0:00:30]} Nbd7 {[%emt 0:00:30]} 15. h3 {[%emt 0:00:30]} Qe7 {[%emt 0:00:30]} 16. e5 {[%emt 0:00:30]} dxe5 {[%emt 0:00:30]} 17. Nxe5 {[%emt 0:00:30]} Nxe5 {[%emt 0:00:30]} 18. f4 {[%emt 0:00:30]} Nxc4 {[%emt 0:00:30]} 19. Rxe7 {[%emt 0:00:30]} Rxe7 {[%emt 0:00:30]} 20. Qb3 {[%emt 0:00:30]} Ne3 {[%emt 0:00:30]} 21. Re1 {[%emt 0:00:30]} c4 {[%emt 0:00:30]} 22. Qxb6 {[%emt 0:00:30]} Nfxd5 {[%emt 0:00:30]} 23. Nxd5 {[%emt 0:00:30]} Nxd5 {[%emt 0:00:30]} 24. Qd6 {[%emt 0:00:30]} Rxe1+ {[%emt 0:00:30]} 25. Bxe1 {[%emt 0:00:30]} Re8 {[%emt 0:00:30]} 26. Bf2 {[%emt 0:00:30]} Bxb2 {[%emt 0:00:30]} 27. Qd7 {[%emt 0:00:30]} Re7 {[%emt 0:00:30]} 28. Qd8+ {[%emt 0:00:30]} Kg7 {[%emt 0:00:30]} 29. Bc5 {[%emt 0:00:30]} Bf6 {[%emt 0:00:30]} 30. Qb8 {[%emt 0:00:30]} Bc6 {[%emt 0:00:30]} 31. Qc8 {[%emt 0:00:30]} Rc7 {[%emt 0:00:30]} 32. Qxa6 {[%emt 0:00:30]} c3 {[%emt 0:00:30]} 33. Qc4 {[%emt 0:00:30]} Ba8 {[%emt 0:00:30]} 34. a5 {[%emt 0:00:30]} Kh7 {[%emt 0:00:30]} 35. f5 {[%emt 0:00:30]} Be7 {[%emt 0:00:30]} 36. fxg6+ {[%emt 0:00:30]} fxg6 {[%emt 0:00:30]} 37. Qf1 {[%emt 0:00:30]} Bxc5+ {[%emt 0:00:30]} 0-1

[Event "Leca Open 2022"]
[Site "Leca da Palmeira"]
[Date "2022.07.31"]
[Round "1.9"]
[White "Ferreira, Ana Margarida"]
[Black "Krishna C R G"]
[Result "0-1"]
[ECO "A05"]
[WhiteElo "1724"]
[BlackElo "2430"]
[Annotator "RC"]
[PlyCount "70"]
[EventDate "2022.08.02"]
[EventType "swiss"]
[EventCountry "POR"]
[SourceTitle "playchess.com"]
[Source "ChessBase"]
[SourceQuality "1"]
[TimeControl "5400+30"]

1. Nf3 {[%emt 0:00:04]} Nf6 {[%emt 0:00:06]} 2. b3 {[%emt 0:00:13]} d6 {[%emt 0:00:13]} 3. d4 {[%emt 0:01:57]} g6 {[%emt 0:00:26]} 4. Bb2 {[%emt 0:00:19]} Bg7 {[%emt 0:00:03]} 5. Nbd2 {[%emt 0:01:00]} O-O {[%emt 0:01:11]} 6. e3 {[%emt 0:02:29]} c5 {[%emt 0:02:20]} 7. Be2 {[%emt 0:03:07]} Nc6 {[%emt 0:00:10]} 8. O-O {[%emt 0:07:43]} Bf5 {[%emt 0:02:41]} 9. Nh4 {[%emt 0:14:25]} Be6 {[%emt 0:01:14]} 10. c4 {[%emt 0:01:58]} cxd4 {[%emt 0:01:03]} 11. exd4 {[%emt 0:02:13]} d5 {[%emt 0:00:10]} 12. c5 {[%emt 0:07:31]} Ne4 {[%emt 0:00:52]} 13. Nhf3 {[%emt 0:03:12]} Nxc5 {[%emt 0:00:26]} 14. Ne5 {[%emt 0:05:09]} Nxe5 {[%emt 0:04:48]} 15. dxe5 {[%emt 0:00:44]} Rc8 {[%emt 0:03:25]} 16. f4 {[%emt 0:11:12]} d4 {[%emt 0:03:34]} 17. Bg4 {[%emt 0:01:35]} Bxg4 {[%emt 0:06:39]} 18. Qxg4 {[%emt 0:00:17]} Nd3 {[%emt 0:00:03]} 19. Bc1 {[%emt 0:03:36]} Qd5 {[%emt 0:01:32]} 20. Qg3 {[%emt 0:03:44]} Rc3 {[%emt 0:10:34]} 21. Nf3 {[%emt 0:03:03]} Rfc8 {[%emt 0:02:40]} 22. Bd2 {[%emt 0:00:43]} Rc2 {[%emt 0:00:07]} 23. Qh4 {[%emt 0:01:33]} f6 {[%emt 0:00:41]} 24. Qh3 {[%emt 0:04:40]} R8c6 {[%emt 0:05:48]} 25. exf6 {[%emt 0:08:34]} exf6 {[%emt 0:01:22]} 26. f5 {[%emt 0:01:31]} Qe4 {[%emt 0:05:28]} 27. fxg6 {[%emt 0:03:51]} hxg6 {[%emt 0:00:03]} 28. Bh6 {[%emt 0:00:24]} Bxh6 {[%emt 0:01:31]} 29. Qxh6 {[%emt 0:00:02]} Nf4 {[%emt 0:01:29]} 30. Rae1 {[%emt 0:03:31]} Rxg2+ {[%emt 0:00:39]} 31. Kh1 {[%emt 0:00:04]} Re2 {[%emt 0:00:06]} 32. Qxf4 {[%emt 0:04:26]} Qxf4 {[%emt 0:00:34]} 33. Rxe2 {[%emt 0:00:04]} Rc1 {[%emt 0:00:27]} 34. Ref2 {[%emt 0:00:18]} Rxf1+ {[%emt 0:00:08]} 35. Rxf1 {[%emt 0:00:01]} d3 {[%emt 0:00:18]} 0-1

[Event "Leca Open 2022"]
[Site "Leca da Palmeira"]
[Date "2022.07.31"]
[Round "1.10"]
[White "Akhvlediani, Irakli"]
[Black "Walter Travella, German"]
[Result "1-0"]
[ECO "E90"]
[WhiteElo "2429"]
[BlackElo "1706"]
[Annotator "RC"]
[PlyCount "85"]
[EventDate "2022.08.02"]
[EventType "swiss"]
[EventCountry "POR"]
[SourceTitle "playchess.com"]
[Source "ChessBase"]
[SourceQuality "1"]
[TimeControl "5400+30"]

1. d4 {[%emt 0:00:03]} Nf6 {[%emt 0:00:12]} 2. c4 {[%emt 0:00:05]} g6 {[%emt 0:00:09]} 3. Nc3 Bg7 {[%emt 0:00:10]} 4. e4 {[%emt 0:00:09]} d6 {[%emt 0:00:11]} 5. Nf3 {[%emt 0:01:07]} O-O {[%emt 0:00:17]} 6. h3 {[%emt 0:00:02]} c6 {[%emt 0:01:58]} 7. Be3 {[%emt 0:00:11]} Kh8 {[%emt 0:00:48]} 8. Be2 {[%emt 0:00:25]} Nbd7 {[%emt 0:01:43]} 9. O-O {[%emt 0:02:15]} Ng8 {[%emt 0:00:50]} 10. Qc2 {[%emt 0:01:08]} e5 {[%emt 0:04:01]} 11. Rad1 {[%emt 0:00:30]} Qc7 {[%emt 0:00:30]} 12. b4 {[%emt 0:00:30]} Ne7 {[%emt 0:05:00]} 13. dxe5 {[%emt 0:04:21]} dxe5 {[%emt 0:01:15]} 14. c5 {[%emt 0:03:10]} f5 {[%emt 0:01:35]} 15. Ng5 {[%emt 0:03:05]} Nf6 {[%emt 0:04:11]} 16. Qb3 {[%emt 0:09:09]} h6 {[%emt 0:03:29]} 17. Nf7+ {[%emt 0:07:23]} Kh7 {[%emt 0:02:18]} 18. f3 {[%emt 0:00:45]} f4 {[%emt 0:02:35]} 19. Bf2 {[%emt 0:00:06]} g5 {[%emt 0:01:17]} 20. Bc4 {[%emt 0:01:23]} Bd7 {[%emt 0:03:31]} 21. Rd2 {[%emt 0:06:31]} Be8 {[%emt 0:01:10]} 22. Rfd1 {[%emt 0:00:20]} Bxf7 {[%emt 0:08:15]} 23. Bxf7 {[%emt 0:00:04]} Rad8 {[%emt 0:03:42]} 24. Be6 {[%emt 0:00:11]} Rxd2 {[%emt 0:01:33]} 25. Rxd2 {[%emt 0:00:02]} Rd8 {[%emt 0:00:58]} 26. Rb2 {[%emt 0:01:29]} h5 {[%emt 0:01:11]} 27. b5 {[%emt 0:00:52]} Qa5 {[%emt 0:05:41]} 28. Qc4 {[%emt 0:06:14]} Qa3 {[%emt 0:02:39]} 29. Qb3 {[%emt 0:01:03]} Qa5 {[%emt 0:00:49]} 30. Qb4 {[%emt 0:01:27]} Qxb4 {[%emt 0:00:58]} 31. Rxb4 {[%emt 0:00:02]} Rd3 {[%emt 0:01:22]} 32. Be1 {[%emt 0:00:42]} Kh6 {[%emt 0:02:33]} 33. Kf1 {[%emt 0:04:39]} Bf8 {[%emt 0:01:31]} 34. Ke2 {[%emt 0:01:19]} Rd4 {[%emt 0:00:35]} 35. Rb1 {[%emt 0:01:13]} Rd8 {[%emt 0:05:18]} 36. Bf2 {[%emt 0:03:33]} Rb8 {[%emt 0:04:55]} 37. a4 {[%emt 0:02:13]} b6 {[%emt 0:02:46]} 38. cxb6 {[%emt 0:03:50]} axb6 {[%emt 0:00:17]} 39. bxc6 {[%emt 0:00:30]} Nxc6 {[%emt 0:00:14]} 40. Rxb6 {[%emt 0:00:03]} Rxb6 {[%emt 0:00:30]} 41. Bxb6 {[%emt 0:00:02]} Bb4 {[%emt 0:01:32]} 42. Nd5 {[%emt 0:01:35]} Nxd5 {[%emt 0:02:13]} 43. exd5 {[%emt 0:00:04]} 1-0

[Event "Leca Open 2022"]
[Site "Leca da Palmeira"]
[Date "2022.07.31"]
[Round "1.11"]
[White "Santos, Joao Artur Almeida"]
[Black "Umetsubo, Cesar Hidemitsu"]
[Result "0-1"]
[ECO "E17"]
[WhiteElo "1954"]
[BlackElo "2405"]
[Annotator "RC"]
[PlyCount "64"]
[EventDate "2022.08.02"]
[EventType "swiss"]
[EventCountry "POR"]
[SourceTitle "playchess.com"]
[Source "ChessBase"]
[SourceQuality "1"]
[TimeControl "5400+30"]

1. d4 Nf6 2. c4 e6 3. Nf3 b6 4. g3 Bb7 5. Bg2 Be7 6. Nc3 Ne4 7. Nxe4 Bxe4 8. O-O O-O 9. Bd2 d5 10. Qb3 Nd7 11. cxd5 Bxd5 12. Qc2 Nf6 13. Rfd1 Rc8 14. Rac1 c5 15. a3 Qd7 16. dxc5 Rxc5 17. Bc3 Qb7 18. b4 Rc7 19. Qb2 Rd8 20. Be5 Rcd7 21. Ne1 Bxg2 22. Rxd7 Nxd7 23. Nxg2 Nxe5 24. Qxe5 Bf6 25. Qb5 Bb2 26. Rb1 Qe4 27. Re1 Bxa3 28. Qa4 Qxb4 29. Qxa7 h6 30. Kf1 Qd6 31. Ne3 Qc6 32. f3 Ra8 0-1